Cogmind - Beta 11.1 @@@ ROGUE MODE // 2022.07.04 @ 23:37:48 Player: Dickface Result: Destroyed by G-34 Mercenary with Small Laser Performance ------------- Evolutions (0) 0 Regions Visited (2) 400 Robots Destroyed (8) 40 Value Destroyed (264) 264 Prototype IDs (0) 0 Alien Tech Used (0) 0 Bonus (0) 0 TOTAL SCORE: 704 Bonus ------- None Cogmind --------- Core Integrity 0/250 Matter 297/300 Energy 239/250 System Corruption 0% Temperature Cool (59) Movement Walking (120) Location -10/Mines Parts ------- > --- POWER (1) -------- Ion Engine > --- PROPULSION (2) --- Aluminum Leg Aluminum Leg > --- UTILITY (2) ------ Small Storage Unit Utility Shielding > --- WEAPON (2) ------- Medium Laser Light Assault Rifle > --- INVENTORY (8) ---- Aluminum Leg Particle Gun Beam Cannon Light Cannon Peak State ------------ > --- POWER ------------ Ion Engine > --- PROPULSION ------- Wheel Compact Wheel > --- UTILITY ---------- Small Storage Unit Terrain Scan Processor > --- WEAPON ----------- Medium Laser Light Assault Rifle > --- INVENTORY -------- Ion Engine Aluminum Leg Aluminum Leg Wheel Medium Laser [Rating: 8] Favorites ----------- Power Ion Engine Engine Ion Engine Propulsion Compact Wheel Leg Aluminum Leg Wheel Compact Wheel Utility Small Storage Unit Storage Small Storage Unit Processor Terrain Scan Processor Protection Utility Shielding Weapon Medium Laser Energy Gun Medium Laser Ballistic Gun Light Assault Rifle Build | -11 -10 -10 ------- Run | Scr Mat Min Slots Evolved . | . . . Power . | . . . Propulsion . | . . . Utility . | . . . Weapon . | . . . Parts Attached 15 | 7 6 2 Power 2 | 1 1 . Engine 2 | 1 1 . Core . | . . . Reactor . | . . . Propulsion 5 | 2 1 2 Treads . | . . . Leg 2 | . . 2 Wheel 3 | 2 1 . Hover . | . . . Flight . | . . . Utility 3 | 1 2 . Device . | . . . Storage 1 | 1 . . Processor 1 | . 1 . Hackware . | . . . Protection 1 | . 1 . Artifact . | . . . Weapon 5 | 3 2 . Energy Gun 3 | 2 1 . Energy Cannon . | . . . Ballistic Gun 2 | 1 1 . Ballistic Cannon . | . . . Launcher . | . . . Special Weapon . | . . . Impact Weapon . | . . . Slashing Weapon . | . . . Piercing Weapon . | . . . Special Melee Weapon . | . . . Unidentified Prototypes . | . . . Parts Lost 6 | . 5 1 Power 1 | . 1 . Propulsion 3 | . 2 1 Utility . | . . . Weapon 2 | . 2 . Highest Loss Streak 5 | . 5 1 To Critical Strikes . | . . . Average Slot Usage (%) 92 | . 92 94 Engine 13 | . 13 14 Leg 4 | . . 22 Wheel 18 | . 23 . Storage 14 | . 14 14 Protection 12 | . 12 14 Energy Gun 13 | . 13 14 Ballistic Gun 13 | . 13 14 Naked Turns . | . . . Heaviest Build 14 | 14 14 14 Greatest Support 26 | 26 26 20 Greatest Overweight (x) 4 | . . 4 Average Overweight (x) . | . . . Largest Inventory Capacity 8 | 8 8 8 Average Capacity 7 | 6 8 8 Most Carried 8 | 5 8 5 Average Carried 5 | 3 6 4 Final Capacity 8 | 8 8 8 Final Carried 5 | 4 5 4 Class Distribution -------------------- 100% | Mutant Dominant Class ---------------- Mutant | -10/Materials Mutant | -10/Mines Resources | -11 -10 -10 ----------- Run | Scr Mat Min Matter Collected 366 | 262 79 25 Remotely . | . . . Salvage Created 311 | . 260 51 Parts 22 | . 18 4 Haulers Intercepted . | . . . Recyclers Shooed . | . . . Parts Field Recycled . | . . . Retrieved Matter . | . . . Parts Self-Destructed . | . . . Prevented . | . . . Kills | -11 -10 -10 ------- Run | Scr Mat Min Combat Hostiles Destroyed 6 | . 5 1 Guns 6 | . 5 1 Classes Destroyed 3 | . 3 . Builder 1 | . 1 . Watcher 1 | . 1 . Grunt 6 | . 5 1 Best Kill Streak 3 | . 3 1 Combat Bots Only 3 | . 3 1 Max Kills in Single Turn 1 | . 1 1 Gunslinging . | . . . Exploded . | . . . Melee . | . . . Uniques/NPCs Destroyed . | . . . Combat | -11 -10 -10 -------- Run | Scr Mat Min Damage Taken 849 | . 599 250 Core 255 | . 158 97 Absorbed by Shields . | . . . Redirected to Shielding 25 | . 21 4 Core Remaining (%) 100 | 100 . . Volleys Fired 36 | . 28 8 Largest 2 | . 2 2 Hottest 70 | . 70 70 Shots Fired 70 | . 54 16 Gun 70 | . 54 16 Cannon . | . . . Launcher . | . . . Special . | . . . Kinetic 36 | . 28 8 Thermal 34 | . 26 8 Explosive . | . . . Electromagnetic . | . . . Robot Hit Streak 10 | . 6 10 Robot Miss Streak 2 | . 2 2 Penetration Max . | . . . Secondary Targets 1 | . 1 . Max Gunslinging Chain 1 | . 1 . Shots Hit Robots 40 | . 30 10 Core Hits 21 | . 16 5 Critical Kills . | . . . Critical Parts Destroyed . | . . . Critical Strikes 2 | . 1 1 Burn 2 | . 1 1 Melee Attacks . | . . . Impact . | . . . Slashing . | . . . Piercing . | . . . Sneak Attacks . | . . . Combat Hostiles . | . . . Follow-up Attacks . | . . . Damage Inflicted 455 | . 353 102 Guns 455 | . 353 102 Cannons . | . . . Explosions . | . . . Melee . | . . . Ramming . | . . . Kinetic 153 | . 126 27 Thermal 302 | . 227 75 Explosive . | . . . Electromagnetic . | . . . Impact . | . . . Slashing . | . . . Piercing . | . . . Highest Corruption . | . . . Average Corruption . | . . . Corruption Purged . | . . . Corruption Blocked . | . . . Overload Shots . | . . . Overflow Damage . | . . . Projectiles . | . . . Explosions . | . . . Melee . | . . . Knockbacks . | . . . Impact . | . . . Kinetic . | . . . Secondary . | . . . Self-Inflicted Damage . | . . . Shots . | . . . Rammed . | . . . Targets Rammed . | . . . Kicked . | . . . Crushed . | . . . Highest Temperature 183 | . 183 86 Average Temperature 72 | . 78 48 Received Heat Transfer 480 | . 336 144 Siege Activations . | . . . Robots Corrupted . | . . . Combat Hostiles . | . . . Parts Fried . | . . . Impact Corruptions . | . . . Robots Melted . | . . . Combat Hostiles . | . . . Parts Melted . | . . . Heat Transferred 1036 | . 740 296 Parts Sabotaged . | . . . Parts Stolen . | . . . Parts Stripped . | . . . Power Chain Reactions . | . . . Missiles Intercepted . | . . . Alert | -11 -10 -10 ------- Run | Scr Mat Min Peak Influence 145 | . 145 45 Initial 8 | . . 8 Average 48 | . 61 28 Maximum Alert Level . | . . . Low Security (%) 100 | 100 100 100 Level 1 . | . . . Level 2 . | . . . Level 3 . | . . . Level 4 . | . . . Level 5 . | . . . High Security . | . . . Max Security . | . . . Squads Dispatched 1 | . 1 . Investigation . | . . . Extermination . | . . . Reinforcement 1 | . 1 . Assault . | . . . Garrison . | . . . Intercept . | . . . Searches Triggered . | . . . Construction Impeded . | . . . Haulers Reinforced . | . . . Active Scanning Responses . | . . . Cargo Convoy Interrupts . | . . . Stealth | -11 -10 -10 --------- Run | Scr Mat Min Distress Signals . | . . . Communications Jammed . | . . . Distress Signals . | . . . Times Spotted 14 | . 10 4 Peak Tracking Total 4 | . 4 2 Tactical Retreats 2 | . 1 1 Traps | -11 -10 -10 ------- Run | Scr Mat Min Traps Triggered . | . . . Indirectly . | . . . Trap Hack Attempts . | . . . Triggered . | . . . Disarmed . | . . . Reprogrammed . | . . . Reused . | . . . Traps Extracted . | . . . Installed . | . . . Triggered . | . . . Machines | -11 -10 -10 ---------- Run | Scr Mat Min Machines Disabled . | . . . Max in Single Turn . | . . . Machines Sabotaged . | . . . Garrisons Compromised . | . . . Overloaded Fab Kills . | . . . Hacking | -11 -10 -10 --------- Run | Scr Mat Min Machines Accessed . | . . . Terminals . | . . . Fabricators . | . . . Repair Stations . | . . . Recycling Units . | . . . Scanalyzers . | . . . Garrison Access . | . . . Total Hacks . | . . . Successful . | . . . Failed . | . . . Catastrophic . | . . . Database Lockouts . | . . . Manual . | . . . Terminals . | . . . Fabricators . | . . . Repair Stations . | . . . Recycling Units . | . . . Scanalyzers . | . . . Garrison Access . | . . . Terminal Hacks . | . . . Fabricator Hacks . | . . . Repair Station Hacks . | . . . Recycling Unit Hacks . | . . . Scanalyzer . | . . . Garrison Access Hacks . | . . . Unauthorized Hacks . | . . . Terminals . | . . . Fabricators . | . . . Repair Stations . | . . . Recycling Units . | . . . Scanalyzers . | . . . Garrison Access . | . . . Data Cores Recovered . | . . . Used . | . . . Hacking Detections . | . . . Full Trace Events . | . . . Feedback Events . | . . . Feedback Blocked . | . . . Robot Schematics Acquired . | . . . Robots Built . | . . . Authchips . | . . . Time . | . . . Total Robot Build Rating . | . . . Part Schematics Acquired . | . . . Parts Built . | . . . Authchips . | . . . Time . | . . . Total Part Build Rating . | . . . Parts Repaired . | . . . Time . | . . . Parts Recycled . | . . . Recycled Matter . | . . . Retrieved Matter . | . . . Retrieved Components . | . . . Parts Scanalyzed . | . . . Part Schematics Acquired . | . . . Parts Damaged . | . . . Bothacking | -11 -10 -10 ------------ Run | Scr Mat Min Used RIF Installer . | . . . Robots Hacked . | . . . Non-combat . | . . . Combat . | . . . Robot Hacks Applied . | . . . Relay Couplers Released . | . . . Fabnet Peak Effective % . | . . . Robots Rewired . | . . . Allies Hacked . | . . . Hacks Repelled . | . . . Allies | -11 -10 -10 -------- Run | Scr Mat Min Total Allies . | . . . Largest Group . | . . . Highest-Rated Group . | . . . Highest-Rated Ally . | . . . Total Orders . | . . . Ally Attacks . | . . . Total Damage . | . . . Kills . | . . . Allies Corrupted . | . . . Allies Melted . | . . . Intel | -11 -10 -10 ------- Run | Scr Mat Min Robot Analysis Total . | . . . Derelict Logs Recovered . | . . . Drone Launches . | . . . Drone Recoveries . | . . . Exploration | -11 -10 -10 ------------- Run | Scr Mat Min Turns Passed 626 | 68 441 117 Spaces Moved 423 | 59 301 63 Core 10 | 5 . 5 Treads . | . . . Legs 57 | . . 57 Wheels 356 | 54 301 1 Hover . | . . . Flight . | . . . Fastest Speed 50 | 50 90 100 Average Speed 97 | 86 93 130 Slowest Speed 250 | 90 100 250 Overloaded Moves . | . . . Propulsion Burnouts . | . . . Robots Hopped . | . . . Cave-ins Triggered . | . . . Exploration Rate (%) 20 | 4 33 24 Regions Visited 2 Branch Regions 1 Pre-discovered Areas . | . . . Known Exits Taken . | . . . Unknown Exits Taken 2 | 1 1 . Scrap Searched . | . . . Spaces Dug . | . . . Terrain Destroyed . | . . . Melee . | . . . Projectile . | . . . AOE . | . . . Terrain Rammed . | . . . Walls Destroyed . | . . . Machines Disabled . | . . . Actions | -11 -10 -10 --------- Run | Scr Mat Min Total 573 | 75 412 86 Wait 82 | . 70 12 Move 421 | 58 300 63 Hop . | . . . Pick Up 17 | 9 7 1 Fast Attach 1 | 1 . . Attach 14 | 6 6 2 Detach 2 | 1 1 . Swap . | . . . Drop . | . . . Fire 36 | . 28 8 Melee . | . . . Ram . | . . . Kick . | . . . Crush . | . . . Escape Stasis . | . . . Rewire . | . . . Trap . | . . . Miscellaneous . | . . . Route ------- -11/Scrapyard -10/Materials -10/Mines History --------- Turn | Location | Event 8 | -11/Scrapyard | Discovered new exit (range 15) 69 | -11/Scrapyard | Entered Materials 307 | -10/Materials | Build established: Mutant 393 | -10/Materials | Core integrity fell below 50% 404 | -10/Materials | Lost 5 parts (1p2n2w) 454 | -10/Materials | Discovered new exit (range 11) 510 | -10/Materials | Entered Mines 540 | -10/Mines | Core integrity fell below 20% 627 | -10/Mines | Destroyed by G-34 Mercenary with Small Laser Last Messages --------------- 00412_ Acquired Particle Gun. 00448_ K-01 Serf collects debris. 00454_ EXIT=FOUND 00459_ T-07 Excavator is excavating. 00459_ K-01 Serf cleans the Electrolysis Chamber. 00462_ T-07 Excavator is excavating. 00467_ K-01 Serf cleans the Electrolysis Chamber. 00471_ T-07 Excavator is excavating. 00473_ W-16 Scout destroyed. 00476_ Acquired 1 matter. 00507_ T-07 Excavator is excavating. LOCATION=UNKNOWN GOAL=ESCAPE 00511_ Com. Wheel destroyed. 00539_ G-47 Trooper suffers critical hit (Burn). 00541_ G-47 Trooper heat short circuits Aluminum Leg. 00542_ G-47 Trooper destroyed. 00545_ Acquired 25 matter. 00547_ Acquired Aluminum Leg. 00590_ K-01 Serf collects debris. Map ----- +----------------------------------------------------+ | ??????????????????????????????????????? | | ??????????????????????????????????????? | | ???????????###????????????????????????? | | ??????????## ##???????????????????????? | | ?????###??# #???????????????????????? | | ????## #### ##??????????????????????? | | ???## ## ##?????????????????????? | | ??## #?????????????????????? | | ??# """ #?????????????????????? | | ??# """ #?????????????????????? | | ???# """ #??????? ?????????????? | | ????#*[ #??????? ?????????????? | | ????#%### #??????? ?????????????? | | ????# #?## #??????# #????????????? | | ??###=#??#### #??????# #????????????? | | ?## #?????# #??????# ##???????????? | | ?# ##???## ##????## ##??????????? | | ?# #???# #???## #??????????? | | ?## #???# #???# #??????????? | | ??## #???## ##??# #??????????? | | ???# #???## ##?# ?????##????? | | ???# #???# ### ????## ##???? | | ??? #???# #?# #????# ##??? | | ??? ???## ### ###### #??? | | ??? #???# ### g #??? | | ???# ??## ##?# @ g #???? | | ???# ### #### ###### #???? | | ???? ### ## ##?## #???? | | ???? ##?# k #?# #???? | | ???? #??## #?# #???? | | ????# ##???## ##?# ##???? | | ????? ??????## ## #?? ##????? | | ?????????????## #### #?# #?????? | | ??????????????####??## #?## #?????? | | ?????????????????????## ##??## #?????? | | ??????????????????????# #????# #?????? | | ??????????????????????# #????# ?????? | | ??????????????????????# #????# ?????? | | ??????????????????????? #????# ?????? | | ??????????????????????? ???? """????? | | ???????????????????????##????# """????? | | ?????????????????????????????? "??????? | | ?????????????????????????????? ???????? | | ??????????????????????????????????????? | | ??????????????????????????????????????? | | ??????????????????????????????????????? | | ??????????????????????????????????????? | | ??????????????????????????????????????? | | ??????????????????????????????????????? | | ??????????????????????????????????????? | +----------------------------------------------------+ Best States ------------- Heat Dissipation 25 Energy Generation 10 Energy Capacity 250 Matter Stores 300 Matter Capacity 300 Sight Range 16 Terrain Scan Density 85 Utility Shielding 33 Evasion (%) 55 Item Schematics ----------------- None Robot Schematics ------------------ None Fabricated ------------ Nothing Alien Tech Used ----------------- None Achievements -------------- None Challenges ------------ None Game ------ Seed BarrageCompactAnalyzer Manual? 0 Play Time 00:07:51 Cumulative 14.6 hours Start 2022.07.04 @ 23:30:48 End 2022.07.04 @ 23:37:48 Sessions 1 Manual Loads 0 Difficulty Rogue Special Mode None Game No. 38 Rogue 38 Adventurer 0 Explorer 0 Win Type - Total 0 Types 0/0/0/0/0/0/0/0/0 Lore% 10 Gallery% 19 Achievement% 10 Wizard Run 0 Options --------- ASCII 0 Keyboard 0 Movement Mouse Keybinds 0 Fullscreen 2 Font 18/TerminusBold Map View 76x50 Tactical HUD 1 Map Filters NONE Filters NONE Steam 1 RUN: 9ef3270d-6b30-4081-9027-ac36b962f930